bitfinex/quotes_BTCUSD_20250917
["timestamp","ask_amount","ask_price","bid_price","bid_amount"]
[1758139901981,0.46089593,116190.0,116180.0,0.564585]
[1758139902636,0.46089593,116190.0,116180.0,0.566745]
[1758139903454,0.04694872,116190.0,116180.0,0.566745]
[1758139903664,0.45793593,116190.0,116180.0,0.65201467]
[1758139903876,0.46089593,116190.0,116180.0,0.65201467]
[1758139904086,0.04990872,116190.0,116180.0,0.65201467]
[1758139904298,0.46089593,116190.0,116180.0,0.37637467]
[1758139904506,0.46089593,116190.0,116180.0,0.64981467]
[1758139904719,0.04694872,116190.0,116180.0,0.65197467]
[1758139904928,0.46089593,116190.0,116180.0,0.64981467]
[1758139905344,0.04990872,116190.0,116180.0,0.64981467]
[1758139905559,0.43087593,116190.0,116180.0,0.65197467]
[1758139906391,0.01988872,116190.0,116180.0,0.65197467]
[1758139907021,0.01988872,116190.0,116180.0,1.06296188]
[1758139907535,0.01988872,116190.0,116180.0,1.47394909]
[1758139909900,0.01988872,116190.0,116180.0,1.06296188]
[1758139910099,0.02197872,116190.0,116180.0,1.06296188]
[1758139910303,0.02493872,116190.0,116180.0,1.06296188]
[1758139910737,0.02197872,116190.0,116180.0,0.65197467]
[1758139910952,0.02197872,116190.0,116180.0,1.06296188]
[1758139911419,0.01988872,116190.0,116180.0,0.65197467]
[1758139911650,0.01988872,116190.0,116180.0,1.06296188]
[1758139911872,0.01988872,116190.0,116180.0,1.06287011]
[1758139912138,0.01988872,116190.0,116180.0,0.65197467]
[1758139912341,0.01988872,116190.0,116180.0,1.06287011]
[1758139913862,0.01988872,116190.0,116180.0,0.65494467]
[1758139914077,0.01988872,116190.0,116180.0,1.06584011]
[1758139914317,0.01988872,116190.0,116180.0,0.65494467]
[1758139914538,0.01988872,116190.0,116180.0,1.06584011]
[1758139915918,0.01988872,116190.0,116180.0,1.40584011]
[1758139916414,0.01988872,116190.0,116180.0,0.99494467]
[1758139916633,0.01988872,116190.0,116180.0,1.80584011]
[1758139917742,0.01988872,116190.0,116180.0,1.39494467]
[1758139917950,0.01988872,116190.0,116180.0,1.80584011]
[1758139918157,0.01988872,116190.0,116180.0,1.39494467]
[1758139918360,0.01988872,116190.0,116180.0,1.80584011]
[1758139919916,0.01988872,116190.0,116180.0,1.39494467]
[1758139920129,0.01988872,116190.0,116180.0,1.80584011]
[1758139928838,0.01988872,116190.0,116180.0,1.80680011]
[1758139929048,0.01988872,116190.0,116180.0,1.80676011]
[1758139929338,0.01988872,116190.0,116180.0,1.53240011]
[1758139929557,0.01988872,116190.0,116180.0,1.80676011]
[1758139932780,0.01988872,116190.0,116180.0,1.13240011]
[1758139933006,0.01988872,116190.0,116180.0,1.40367011]
[1758139933240,0.01988872,116190.0,116180.0,1.40684011]
[1758139933462,0.01988872,116190.0,116180.0,1.40672011]
[1758139935475,0.01988872,116190.0,116180.0,1.40660011]
[1758139936436,0.01988872,116190.0,116180.0,0.71853467]
[1758139936650,0.04456872,116190.0,116180.0,1.40335011]
[1758139936860,0.04456872,116190.0,116180.0,1.80335011]
[1758139937076,0.02186872,116190.0,116180.0,1.80335011]
[1758139937303,0.01988872,116190.0,116180.0,1.80335011]
[1758139937454,0.01988872,116190.0,116180.0,1.40335011]
[1758139938072,0.01988872,116190.0,116180.0,1.80335011]
[1758139938262,0.01988872,116190.0,116180.0,1.80652011]
[1758139938480,0.01988872,116190.0,116180.0,1.40652011]
[1758139938896,0.01988872,116190.0,116180.0,1.80652011]
[1758139939121,0.01988872,116190.0,116180.0,1.40652011]
[1758139939321,0.01988872,116190.0,116180.0,1.93283712]
[1758139939527,0.01988872,116190.0,116180.0,1.92194168]
[1758139941375,0.01988872,116190.0,116180.0,2.05891712]
[1758139941591,0.01988872,116190.0,116180.0,2.33291712]
[1758139941801,0.01988872,116190.0,116180.0,1.64802168]
[1758139942263,0.01988872,116190.0,116180.0,1.23712624]
[1758139942491,0.01988872,116190.0,116180.0,1.51156624]
[1758139942907,0.01988872,116190.0,116180.0,1.92246168]
[1758139943312,0.01988872,116190.0,116180.0,1.92250168]
[1758139945348,0.01988872,116190.0,116180.0,1.92254168]
[1758139945705,0.01988872,116190.0,116180.0,1.64802168]
[1758139945903,0.01988872,116190.0,116180.0,1.92254168]
[1758139946338,0.01988872,116190.0,116180.0,1.64802168]
[1758139946503,0.01988872,116190.0,116180.0,1.92254168]
[1758139947868,0.01988872,116190.0,116180.0,1.64802168]
[1758139948327,0.01988872,116190.0,116180.0,1.92250168]
[1758139949703,0.01988872,116190.0,116180.0,1.64802168]
[1758139949909,0.01988872,116190.0,116180.0,1.92250168]
[1758139950115,0.01988872,116190.0,116180.0,1.64802168]
[1758139950316,0.01988872,116190.0,116180.0,1.92246168]
[1758139950517,0.01988872,116190.0,116180.0,1.51156624]
[1758139950674,0.01988872,116190.0,116180.0,1.92246168]
[1758139952014,0.01988872,116190.0,116180.0,1.51156624]
[1758139952225,0.01988872,116190.0,116180.0,1.92246168]
[1758139952839,0.01988872,116190.0,116180.0,1.64802168]
[1758139953308,0.01988872,116190.0,116180.0,1.92370168]
[1758139953513,0.01988872,116190.0,116180.0,1.23712624]
[1758139953730,0.01988872,116190.0,116180.0,1.42761657]
[1758139953929,0.01988872,116190.0,116180.0,1.83851201]
[1758139954126,0.01988872,116190.0,116180.0,1.56275201]
[1758139954356,0.01988872,116190.0,116180.0,1.42761657]
[1758139954515,0.01988872,116190.0,116180.0,1.83851201]
[1758139954724,0.01988872,116190.0,116180.0,1.92378168]
[1758139959008,0.01988872,116190.0,116180.0,1.51288624]
[1758139959237,0.01988872,116190.0,116180.0,1.92378168]
[1758139960657,0.01988872,116190.0,116180.0,1.51288624]
[1758139960964,0.01988872,116190.0,116180.0,1.92378168]
[1758139963290,0.01988872,116190.0,116180.0,1.51288624]
[1758139963541,0.01988872,116190.0,116180.0,1.92378168]
[1758139964250,0.01988872,116190.0,116180.0,1.52378168]
[1758139964724,0.01988872,116190.0,116180.0,1.92378168]
[1758139966178,0.01988872,116190.0,116180.0,1.52378168]
[1758139966624,0.01988872,116190.0,116180.0,1.92378168]
[1758139966839,0.01988872,116190.0,116180.0,1.51288624]
[1758139967079,0.01988872,116190.0,116180.0,1.92378168]
[1758139968695,4e-05,116200.0,116190.0,1.33392273]
[1758139968907,1e-08,116200.0,116190.0,1.81847397]
[1758139969130,1e-08,116200.0,116190.0,1.54832397]
[1758139969365,1e-08,116200.0,116190.0,2.22368397]
[1758139969586,1e-08,116200.0,116190.0,2.22719033]
[1758139970255,1e-08,116200.0,116190.0,2.23019033]
[1758139971906,1e-08,116200.0,116190.0,2.74108577]
[1758139972363,4e-05,116210.0,116200.0,1.41405981]
[1758139972587,4e-05,116210.0,116200.0,2.23498915]
[1758139972782,4e-05,116210.0,116200.0,2.23702915]
[1758139973031,4e-05,116210.0,116200.0,2.63702915]
[1758139973668,4e-05,116210.0,116200.0,2.66287249]
[1758139973893,4e-05,116210.0,116200.0,3.0754182]
[1758139974746,4e-05,116210.0,116200.0,2.8002582]
[1758139974952,4e-05,116210.0,116200.0,3.0752582]
[1758139975573,4e-05,116210.0,116200.0,2.8002582]
[1758139975799,4e-05,116210.0,116200.0,3.0752582]
[1758139977031,4e-05,116210.0,116200.0,1.51892161]
[1758139977243,4e-05,116210.0,116200.0,2.61477267]
[1758139977452,4e-05,116210.0,116200.0,2.66477267]
[1758139977939,4e-05,116210.0,116200.0,3.0837182]
[1758139979319,4e-05,116210.0,116200.0,2.8087582]
[1758139979527,4e-05,116210.0,116200.0,3.0846382]
[1758139980374,4e-05,116210.0,116200.0,3.0845582]
[1758139981648,4e-05,116210.0,116200.0,3.0844782]
[1758139982110,4e-05,116210.0,116200.0,1.57742161]
[1758139982333,4e-05,116210.0,116200.0,2.34831267]
[1758139982556,4e-05,116210.0,116200.0,1.15726971]
[1758139982777,4e-05,116210.0,116200.0,2.18659524]
[1758139983032,4e-05,116210.0,116200.0,2.59704077]
[1758139983479,4e-05,116210.0,116200.0,2.59696077]
[1758139983716,4e-05,116210.0,116200.0,2.62711267]
[1758139985289,4e-05,116210.0,116200.0,2.62707267]
[1758139986384,4e-05,116210.0,116200.0,2.34531267]
[1758139986598,4e-05,116210.0,116200.0,1.52442161]
[1758139986824,4e-05,116210.0,116200.0,2.62579267]
[1758139987045,4e-05,116210.0,116200.0,1.52319161]
[1758139987258,4e-05,116210.0,116200.0,2.21524714]
[1758139987698,0.00203,116210.0,116200.0,1.49616971]
[1758139987908,0.44028553,116210.0,116200.0,1.27617004]
[1758139988606,0.44028553,116210.0,116200.0,0.99729004]
[1758139988837,0.02984,116210.0,116200.0,1.27621004]
[1758139989533,0.02984,116210.0,116200.0,1.27421004]
[1758139989750,0.44028553,116210.0,116200.0,1.27521004]
[1758139990355,0.44028553,116210.0,116200.0,1.27609004]
[1758139990562,0.44028553,116210.0,116200.0,0.62333004]
[1758139990772,0.02984,116210.0,116200.0,0.90321004]
[1758139990980,0.44028553,116210.0,116200.0,0.90321004]
[1758139992603,0.02984,116210.0,116200.0,0.62333004]
[1758139992803,0.44028553,116210.0,116200.0,0.90317004]
[1758139993952,0.02984,116210.0,116200.0,0.90317004]
[1758139994192,0.44028553,116210.0,116200.0,0.90317004]
[1758139994392,0.02984,116210.0,116200.0,0.90301004]
[1758139994599,0.44028553,116210.0,116200.0,0.90301004]
[1758139994931,0.02984,116210.0,116200.0,0.90301004]
[1758139995621,0.61238775,116210.0,116200.0,0.81750037]
[1758139995846,0.61238775,116210.0,116200.0,0.19806037]
[1758139996066,0.61238775,116210.0,116200.0,0.48010037]
[1758139996733,0.61238775,116210.0,116200.0,0.17221703]
[1758139996986,1.10810295,116210.0,116200.0,0.0001]
[1758139998290,1.51854848,116210.0,116200.0,0.0001]
[1758139998932,1.11689111,116210.0,116200.0,0.0001]
[1758139999355,0.29600005,116210.0,116200.0,0.0001]
[1758139999586,1.11689111,116210.0,116200.0,0.0001]
[1758139999801,0.29600005,116210.0,116200.0,0.0001]
[1758140000008,1.11689111,116210.0,116200.0,0.0001]
[1758140001092,1.10810295,116210.0,116200.0,0.0001]
[1758140003666,1.38994295,116210.0,116200.0,0.0001]
[1758140004056,0.56905189,116210.0,116200.0,0.0001]
[1758140004263,1.38994295,116210.0,116200.0,0.0001]
[1758140004951,1.38986295,116210.0,116200.0,0.0001]
[1758140006222,1.39588455,116210.0,116200.0,0.0001]
[1758140010625,1.39588253,116210.0,116200.0,0.0001]
[1758140016463,1.41194926,116210.0,116200.0,0.0001]
[1758140025376,1.38986295,116210.0,116200.0,0.0001]
[1758140025705,1.41200938,116210.0,116200.0,0.0001]
[1758140026151,1.38986295,116210.0,116200.0,0.0001]
[1758140026350,1.40597711,116210.0,116200.0,0.0001]
[1758140026507,1.38986295,116210.0,116200.0,0.0001]
[1758140026705,1.40597711,116210.0,116200.0,0.0001]
[1758140027117,1.38986295,116210.0,116200.0,0.0001]
[1758140029325,1.41202766,116210.0,116200.0,0.0001]
[1758140029545,1.39590787,116210.0,116200.0,0.0001]
[1758140029788,0.57237681,116210.0,116200.0,0.0001]
[1758140029997,0.98282234,116210.0,116200.0,0.0001]
[1758140030221,0.97677742,116210.0,116200.0,0.0001]
[1758140031059,0.9989556,116210.0,116200.0,0.0001]
[1758140032766,0.58851007,116210.0,116200.0,0.0001]
[1758140032972,0.9989556,116210.0,116200.0,0.0001]
[1758140035825,0.99944157,116210.0,116200.0,0.0001]
[1758140037593,1.41037307,116210.0,116200.0,0.0001]
[1758140037808,1.84337307,116210.0,116200.0,0.0001]
[1758140038023,1.87352497,116210.0,116200.0,0.0001]
[1758140040421,1.97352497,116210.0,116200.0,0.0001]
[1758140040752,1.97352497,116210.0,116190.0,0.0001]
[1758140040753,0.51211703,116200.0,116190.0,0.0001]
[1758140040979,1.75045978,116200.0,116190.0,0.0001]
[1758140041181,1.77828978,116200.0,116190.0,0.0001]
[1758140044065,2.23922128,116200.0,116190.0,1e-08]
[1758140044272,2.31532776,116200.0,116190.0,1e-08]
[1758140044473,0.27214666,116180.0,116170.0,1e-08]
[1758140044677,0.64231338,116170.0,116160.0,0.0001]
[1758140044824,1.8370852,116170.0,116160.0,0.0001]
[1758140045027,1.8644852,116170.0,116160.0,0.0001]
[1758140048092,1.8645852,116170.0,116160.0,0.0001]
[1758140048753,0.1721763,116160.0,116150.0,0.06831573]
[1758140048940,1.36664756,116160.0,116150.0,0.06831573]
[1758140049202,1.39414756,116160.0,116150.0,0.06831573]
[1758140049649,0.51219113,116150.0,116130.0,0.06831573]
[1758140049862,1.2876723,116150.0,116130.0,0.06831573]
[1758140050077,1.2927623,116150.0,116130.0,0.24053495]
[1758140050293,1.3171423,116150.0,116130.0,0.24053495]
[1758140051194,0.9062108,116150.0,116130.0,0.24053495]
[1758140051433,1.3171423,116150.0,116130.0,0.24053495]
[1758140051757,1.3171423,116150.0,116130.0,0.06831573]
[1758140053726,1.3171423,116150.0,116130.0,0.24053625]
[1758140053953,0.9062108,116150.0,116130.0,0.24053583]
[1758140054214,1.3171423,116150.0,116130.0,0.24053583]
[1758140054834,0.9062108,116150.0,116130.0,0.24053583]
[1758140055046,1.3171423,116150.0,116130.0,0.24053583]
[1758140055256,0.9062108,116150.0,116130.0,0.24053583]
[1758140055476,1.3171423,116150.0,116130.0,0.24053583]
[1758140056365,1.3171423,116150.0,116130.0,0.06831573]
[1758140056796,1.3171423,116150.0,116130.0,0.24053629]
[1758140057008,0.9062108,116150.0,116130.0,0.24053629]
[1758140057221,1.3171423,116150.0,116130.0,0.17232056]
[1758140057666,0.5975608,116150.0,116140.0,0.02988759]
[1758140057888,0.0001,116150.0,116140.0,0.61598504]
[1758140058305,0.2791,116150.0,116140.0,0.64185497]
[1758140058902,0.0001,116150.0,116140.0,0.64185497]
[1758140060019,0.0001,116150.0,116140.0,0.23092347]
[1758140060250,0.0001,116150.0,116140.0,0.64185497]
[1758140060542,0.0001,116150.0,116140.0,0.23092347]
[1758140060711,0.0001,116150.0,116140.0,0.64185497]
[1758140062695,0.0001,116150.0,116140.0,1.00580464]
[1758140063519,0.0001,116160.0,116150.0,0.17219113]
[1758140063733,0.0001,116160.0,116150.0,0.58608263]
[1758140063963,0.0001,116160.0,116150.0,0.58814263]
[1758140064384,0.0001,116160.0,116150.0,0.61400776]
[1758140064600,0.17843505,116170.0,116160.0,0.1721763]
[1758140065027,0.17843505,116170.0,116160.0,0.1771963]
[1758140065454,0.17843505,116170.0,116160.0,0.20306144]
[1758140065677,0.17843505,116170.0,116160.0,0.20316144]
[1758140068747,0.17843505,116170.0,116160.0,0.03098514]
[1758140068967,0.17843505,116170.0,116160.0,0.20316144]
[1758140069179,0.17843505,116170.0,116160.0,0.211839]
[1758140069615,0.00627284,116170.0,116160.0,0.6227705]
[1758140070239,0.00024056,116170.0,116160.0,0.6227705]
[1758140071210,0.00618577,116170.0,116160.0,0.6227705]
[1758140071817,0.00014056,116170.0,116160.0,0.9006905]
[1758140080533,0.17440204,116170.0,116160.0,0.206819]
[1758140080778,0.20100204,116170.0,116160.0,0.206819]
[1758140083137,0.19776204,116170.0,116160.0,0.208929]
[1758140083323,0.20100204,116170.0,116160.0,0.208929]
[1758140083597,0.17764204,116170.0,116160.0,0.208929]
[1758140083776,0.00548056,116170.0,116160.0,0.208929]
[1758140083936,0.00224056,116170.0,116160.0,0.208929]
[1758140084767,0.00014056,116170.0,116160.0,0.208929]
[1758140085387,0.00014056,116170.0,116160.0,0.6230005]
[1758140085559,0.00014056,116170.0,116160.0,0.212069]
[1758140089061,0.00014056,116170.0,116160.0,0.208929]
[1758140089268,0.00014056,116170.0,116160.0,0.212069]
[1758140092412,0.00548056,116170.0,116160.0,0.206819]
[1758140092621,0.00014056,116170.0,116160.0,0.208929]
[1758140093470,0.00014056,116170.0,116160.0,0.212069]
[1758140094906,0.00014056,116170.0,116160.0,0.6230005]
[1758140095656,0.00014056,116170.0,116160.0,0.212069]
[1758140095855,0.00014056,116170.0,116160.0,0.18620386]
[1758140097369,0.00014056,116170.0,116160.0,0.18306386]
[1758140097804,0.00014056,116170.0,116160.0,0.59415129]
[1758140098262,0.00215056,116170.0,116160.0,0.59415129]
[1758140098738,0.00014056,116170.0,116160.0,0.59415129]
[1758140098973,0.00215056,116170.0,116160.0,0.59415129]
[1758140099858,0.00517056,116170.0,116160.0,0.59415129]
[1758140100030,0.20231204,116170.0,116160.0,0.18095386]
[1758140100266,0.03015056,116170.0,116160.0,0.18095386]
[1758140100481,0.41625799,116170.0,116160.0,0.18095386]
[1758140100686,0.41625799,116170.0,116160.0,0.1722763]
[1758140100896,0.02713056,116170.0,116160.0,0.1742263]
[1758140101075,0.02713056,116170.0,116160.0,0.58531373]
[1758140101328,0.00215056,116170.0,116160.0,0.1742263]
[1758140101623,0.00014056,116170.0,116160.0,0.58845373]
[1758140101844,0.00014056,116170.0,116160.0,0.58531373]
[1758140102494,0.20231204,116170.0,116160.0,0.1722763]
[1758140102677,0.61339947,116170.0,116160.0,0.1722763]
[1758140103030,0.03015056,116170.0,116160.0,0.1722763]
[1758140103680,0.00215056,116170.0,116160.0,0.58539373]
[1758140104707,0.00215056,116170.0,116160.0,0.59396224]
[1758140104965,0.00215056,116170.0,116160.0,0.1743063]
[1758140105166,0.00538056,116170.0,116160.0,0.58539373]
[1758140105309,0.20131204,116170.0,116160.0,0.1722763]
[1758140105519,0.44023799,116170.0,116160.0,0.1722763]
[1758140105928,0.41646799,116170.0,116160.0,0.1722763]
[1758140106128,0.00538056,116170.0,116160.0,0.1722763]
[1758140107504,0.00538056,116170.0,116160.0,0.18081644]
[1758140107833,0.17754204,116170.0,116160.0,0.18081644]
[1758140108031,0.00538056,116170.0,116160.0,0.18081644]
[1758140110691,0.17754204,116170.0,116160.0,0.18284644]
[1758140111654,0.00538056,116170.0,116160.0,0.18284644]
[1758140111861,0.17754204,116170.0,116160.0,0.18081644]
[1758140112936,0.69766914,116170.0,116160.0,0.0001]
[1758140113153,1.10875657,116170.0,116160.0,0.0001]
[1758140113360,0.69766914,116170.0,116160.0,0.0001]
[1758140114384,1.10875657,116170.0,116160.0,0.0001]
[1758140114588,1.10885657,116170.0,116160.0,0.0001]
[1758140114800,1.11490972,116170.0,116160.0,0.0001]
[1758140114984,1.20790972,116170.0,116160.0,0.0001]
[1758140116248,1.20185657,116170.0,116160.0,0.0001]
[1758140116461,1.54790698,116170.0,116160.0,0.0001]
[1758140116686,0.1721763,116160.0,116150.0,0.0001]
[1758140116894,1.35542083,116160.0,116150.0,0.0001]
[1758140117100,1.69740083,116160.0,116150.0,0.0001]
[1758140117307,1.72440083,116160.0,116150.0,0.0001]
[1758140117516,1.72450083,116160.0,116150.0,0.0001]
[1758140119912,1.72550083,116160.0,116150.0,0.0001]
[1758140120626,0.90332597,116160.0,116150.0,0.0001]
[1758140120833,1.72550083,116160.0,116150.0,0.0001]
[1758140121038,1.72450083,116160.0,116150.0,0.0001]
[1758140121246,1.72550083,116160.0,116150.0,0.0001]
[1758140122116,2.13658826,116160.0,116150.0,0.0001]
[1758140122775,0.51219113,116150.0,116140.0,0.02782759]
[1758140123001,1.42891066,116150.0,116140.0,0.02782759]
[1758140123216,1.45466066,116150.0,116140.0,0.02782759]
[1758140123431,1.44871566,116150.0,116140.0,0.02782759]
[1758140123882,0.6265408,116150.0,116140.0,0.02782759]
[1758140124093,1.44871566,116150.0,116140.0,0.02782759]
[1758140124958,1.44971566,116150.0,116140.0,0.02782759]
[1758140125751,1.44871566,116150.0,116140.0,0.02782759]
[1758140125954,1.44971566,116150.0,116140.0,0.02782759]
[1758140127786,1.44971566,116150.0,116140.0,0.02772759]
[1758140128215,1.45575173,116150.0,116140.0,0.02772759]
[1758140128415,1.48590363,116150.0,116140.0,0.02772759]
[1758140130068,1.89699106,116150.0,116140.0,0.02772759]
[1758140130322,1.48590363,116150.0,116140.0,0.02772759]
[1758140133282,1.50198194,116150.0,116140.0,0.02772759]
[1758140134234,1.91306937,116150.0,116140.0,0.02772759]
[1758140134436,1.50198194,116150.0,116140.0,0.02772759]
[1758140135345,1.96306937,116150.0,116140.0,0.02772759]
[1758140135551,2.01306937,116150.0,116140.0,0.02772759]
[1758140137036,2.46206937,116150.0,116140.0,0.02772759]
[1758140137444,2.46106937,116150.0,116140.0,0.02772759]
[1758140137647,2.46406937,116150.0,116140.0,0.02772759]
[1758140137846,2.41406937,116150.0,116140.0,0.02772759]
[1758140138053,2.46406937,116150.0,116140.0,0.02772759]
[1758140138644,2.41406937,116150.0,116140.0,0.02772759]
[1758140138936,2.46406937,116150.0,116140.0,0.02772759]
[1758140139177,2.73966937,116150.0,116140.0,0.02772759]
[1758140140218,1.23080708,116150.0,116140.0,0.02772759]
[1758140140358,1.91745451,116150.0,116140.0,0.02772759]
[1758140140569,1.86745451,116150.0,116140.0,0.02772759]
[1758140141210,1.45636708,116150.0,116140.0,0.02772759]
[1758140141410,2.27854194,116150.0,116140.0,0.02772759]
[1758140141784,1.45636708,116150.0,116140.0,0.02772759]
[1758140141998,1.40636708,116150.0,116140.0,0.02772759]
[1758140142200,2.27854194,116150.0,116140.0,0.02772759]
[1758140142811,1.81745451,116150.0,116140.0,0.02772759]
[1758140143036,1.86745451,116150.0,116140.0,0.02772759]
[1758140143552,1.45636708,116150.0,116140.0,0.02772759]
[1758140143764,1.81745451,116150.0,116140.0,0.02772759]
[1758140143966,1.86745451,116150.0,116140.0,0.02772759]
[1758140144289,1.59189451,116150.0,116140.0,0.02772759]
[1758140144490,1.86749451,116150.0,116140.0,0.02772759]
[1758140144890,2.27858194,116150.0,116140.0,0.02772759]
[1758140147809,2.00298194,116150.0,116140.0,0.02772759]
[1758140148014,1.82958194,116150.0,116140.0,0.02772759]
[1758140148230,1.77958194,116150.0,116140.0,0.02772759]
[1758140148435,1.82958194,116150.0,116140.0,0.02772759]
[1758140149028,1.82958194,116150.0,116140.0,0.02772759]
[1758140149326,1.77958194,116150.0,116140.0,0.02772759]
[1758140149474,1.82958194,116150.0,116140.0,0.02772759]
[1758140149897,1.55398194,116150.0,116140.0,0.02772759]
[1758140150101,1.82958194,116150.0,116140.0,0.02772759]
[1758140151561,1.00740708,116150.0,116140.0,0.02772759]
[1758140151843,1.82958194,116150.0,116140.0,0.02772759]
[1758140154256,1.92266194,116150.0,116140.0,0.02772759]
[1758140155340,1.90054756,116150.0,116140.0,0.02772759]
[1758140155902,1.90659952,116150.0,116140.0,0.02772759]
[1758140156106,1.91668612,116150.0,116140.0,0.02772759]
[1758140156312,1.86668612,116150.0,116140.0,0.02772759]
[1758140156528,1.91668845,116150.0,116140.0,0.02772759]
[1758140156949,1.09451359,116150.0,116140.0,0.02772759]
[1758140157168,1.92274128,116150.0,116140.0,0.02772759]
[1758140159920,1.51206011,116150.0,116140.0,0.02772759]
[1758140160120,1.51206254,116150.0,116140.0,0.02772759]
[1758140161426,1.97355623,116150.0,116140.0,0.02772759]
[1758140161637,0.54237268,116130.0,116120.0,0.0001]
[1758140161848,1.74838588,116130.0,116120.0,0.0001]
[1758140162061,1.77860588,116130.0,116120.0,0.0001]
[1758140162927,1.77860588,116130.0,116120.0,0.00056955]
[1758140163134,1.77860588,116130.0,116120.0,0.00046955]
[1758140164398,1.77960588,116130.0,116120.0,0.00046955]
[1758140166010,0.56226528,116100.0,116090.0,0.0001]
[1758140166240,0.20243202,116090.0,116080.0,0.0005]
[1758140166446,0.93334478,116090.0,116080.0,0.0004]
[1758140166667,1.01123952,116090.0,116080.0,0.0004]
[1758140166881,1.03082637,116090.0,116080.0,0.0004]
[1758140167079,1.04761913,116090.0,116080.0,0.0004]
[1758140167280,1.04771913,116090.0,116080.0,0.0004]
[1758140169547,1.04770451,116090.0,116080.0,0.0004]
[1758140171655,1.49672503,116090.0,116080.0,0.0004]
[1758140171898,1.88672503,116090.0,116080.0,0.0004]
[1758140172093,1.88672503,116090.0,116080.0,1e-08]
[1758140174561,1.88772503,116090.0,116080.0,1e-08]
[1758140174766,0.61635575,116090.0,116080.0,0.00213001]
[1758140174970,1.36588944,116090.0,116080.0,0.00522001]
[1758140175150,1.36031563,116090.0,116080.0,0.00522001]
[1758140175384,1.36227563,116090.0,116080.0,0.00213001]
[1758140175590,1.38632563,116090.0,116080.0,0.00213001]
[1758140175947,0.33322194,116090.0,116080.0,0.00522001]
[1758140176173,0.54229043,116090.0,116080.0,0.00569001]
[1758140176381,0.53624979,116090.0,116080.0,0.00569001]
[1758140176598,0.94774348,116090.0,116080.0,0.00522001]
[1758140177938,0.94774348,116090.0,116080.0,0.00213001]
[1758140178138,0.95895686,116090.0,116080.0,1e-08]
[1758140178381,0.98300686,116090.0,116080.0,1e-08]
[1758140179157,1.07755876,116090.0,116080.0,1e-08]
[1758140179364,1.36924941,116090.0,116080.0,1e-08]
[1758140180186,1.43317567,116090.0,116080.0,1e-08]
[1758140180833,1.4331746,116090.0,116080.0,1e-08]
[1758140181053,0.56229496,116080.0,116070.0,1e-08]
[1758140181273,0.25246171,116070.0,116060.0,0.0001]
[1758140181472,1.53749174,116070.0,116060.0,0.00024083]
[1758140181678,1.56476174,116070.0,116060.0,0.00024083]
[1758140181869,1.56821466,116070.0,116060.0,0.00024083]
[1758140182294,1.56821466,116070.0,116060.0,0.00014083]
[1758140182505,1.90821466,116070.0,116060.0,0.00014083]
[1758140183064,1.92430039,116070.0,116060.0,0.00014083]
[1758140184294,1.92430039,116070.0,116060.0,0.00214083]
[1758140184924,1.97430039,116070.0,116060.0,0.00214083]
[1758140185135,1.92430039,116070.0,116060.0,0.00214083]
[1758140185503,1.92730039,116070.0,116060.0,0.00214083]
[1758140185702,1.92430039,116070.0,116060.0,0.00214083]
[1758140186037,1.10131301,116070.0,116060.0,0.00214083]
[1758140186244,1.92430039,116070.0,116060.0,0.00214083]
[1758140187051,1.92730039,116070.0,116060.0,0.00214083]
[1758140187463,1.10431301,116070.0,116060.0,0.00214083]
[1758140187705,1.92730039,116070.0,116060.0,0.00214083]
[1758140189039,1.65170039,116070.0,116060.0,0.00214083]
[1758140189193,1.4885767,116070.0,116060.0,0.00427083]
[1758140189383,1.5126267,116070.0,116060.0,0.00427083]
[1758140189587,1.92734039,116070.0,116060.0,0.00214083]
[1758140189884,0.1723395,116050.0,116030.0,0.0005]
[1758140190151,0.53326403,116040.0,116030.0,0.00096972]
[1758140190357,0.53929701,116040.0,116030.0,0.00096972]
[1758140190564,0.53929701,116040.0,116030.0,0.00188972]
[1758140190760,0.9507907,116040.0,116030.0,0.00188972]
[1758140190916,0.53939701,116040.0,116030.0,0.00188972]
[1758140191761,0.9508907,116040.0,116030.0,0.00288972]
[1758140192171,0.53939701,116040.0,116030.0,0.00346972]
[1758140193223,0.53939701,116040.0,116030.0,0.02836753]
[1758140193419,0.53336403,116040.0,116030.0,0.02836753]
[1758140193624,0.53939726,116040.0,116030.0,0.02836753]
[1758140194154,0.53939726,116040.0,116030.0,0.02936753]
[1758140194598,0.95089095,116040.0,116030.0,0.02936753]
[1758140195862,0.95286095,116040.0,116030.0,0.02878753]
[1758140196073,1.49944459,116040.0,116030.0,0.00196972]
[1758140196523,1.52959649,116040.0,116030.0,0.00196972]
[1758140196741,1.86959649,116040.0,116030.0,0.00196972]
[1758140196974,0.55549721,116040.0,116030.0,0.00288972]
[1758140197194,0.55549721,116040.0,116030.0,0.00188972]
[1758140197403,0.55549721,116040.0,116030.0,0.00246972]
[1758140198737,0.55549721,116040.0,116030.0,0.00188972]
[1758140198916,0.9669909,116040.0,116030.0,0.00188972]
[1758140199326,0.9669909,116040.0,116030.0,0.00246972]
[1758140199784,0.55549721,116040.0,116030.0,0.00246972]
[1758140200131,0.55549721,116040.0,116030.0,0.00236972]
[1758140200994,1.0023228,116040.0,116030.0,0.00086972]
[1758140201185,1.0249828,116040.0,116030.0,0.00086972]
[1758140201404,0.9669909,116040.0,116030.0,0.00178972]
[1758140202289,0.9669909,116040.0,116030.0,0.00236972]
[1758140203212,0.9669909,116040.0,116030.0,0.00178972]
[1758140203496,1.01093063,116040.0,116030.0,0.00086972]
[1758140203703,1.03359063,116040.0,116030.0,0.00086972]
[1758140204127,1.00772063,116040.0,116030.0,0.00178972]
[1758140204335,1.00575063,116040.0,116030.0,0.00178972]
[1758140204754,1.00772063,116040.0,116030.0,0.00178972]
[1758140204975,0.99162068,116040.0,116030.0,0.00178972]
[1758140205192,1.8350882,116040.0,116030.0,1e-08]
[1758140205415,0.59252111,116030.0,116020.0,1e-08]
[1758140205618,0.54253597,116020.0,116010.0,0.0001]
[1758140205832,1.45817692,116020.0,116010.0,0.0001]
[1758140206477,1.04668323,116020.0,116010.0,0.0001]
[1758140206679,1.45827692,116020.0,116010.0,0.0001]
[1758140207329,1.91977061,116020.0,116010.0,0.0001]
[1758140207707,1.50827692,116020.0,116010.0,0.0001]
[1758140208113,1.50927692,116020.0,116010.0,0.0001]
[1758140208728,1.57424433,116020.0,116010.0,0.0001]
[1758140209203,1.98573802,116020.0,116010.0,0.0001]
[1758140209445,1.98573802,116020.0,116000.0,0.0001]
[1758140209648,0.05,116000.0,115990.0,0.0001]
[1758140209866,1.04710611,116000.0,115990.0,0.0001]
[1758140210075,1.09907611,116000.0,115990.0,0.0001]
[1758140210284,0.84930611,116000.0,115990.0,0.0001]
[1758140210488,1.12840144,116000.0,115990.0,0.0001]
[1758140210690,1.12850144,116000.0,115990.0,0.0001]
[1758140210952,1.07850144,116000.0,115990.0,0.0001]
[1758140211160,1.12850144,116000.0,115990.0,0.0001]